Workbook

Sheet Лист1
A1: Школа | C1: МБОУ "Казанбашская ООШ им.Г.Ахунова" | F1: Утвердил: | G1: должность | H1: Директор
A2: Типовое примерное меню приготавливаемых блюд | G2: фамилия | H2: Камалов Р.Р.
A3: Возрастная категория | E3: 7-11 лет | G3: дата | H3: 2 | I3: 9 | J3: 2024
H4: день | I4: месяц | J4: год
A5: Неделя | B5: День недели | C5: Прием пищи | D5: Раздел меню | E5: Блюда | F5: Вес блюда, г | G5: Белки | H5: Жиры | I5: Углеводы | J5: Калорийность | K5: № рецептуры | L5: Цена
A6: 1 | B6: 1 | C6: Завтрак | D6: гарнир | E6: Макаронные изделия отварные с маслом сливочным | F6: 155 | G6: 5.7 | H6: 4.3 | I6: 31.99 | J6: 189.3 | K6: 203
D7: мясные блюда | E7: Котлета из мяса птицы | F7: 90 | G7: 10.2 | H7: 12.93 | I7: 13.79 | J7: 198
D8: гор.напиток | E8: Компот из сухофруктов (75С) | F8: 200 | G8: 0.66 | H8: 0.09 | I8: 22.03 | J8: 92.8 | K8: 349
D9: хлеб | E9: Хлеб ржаной | F9: 30 | G9: 1.98 | H9: 0.36 | I9: 11.88 | J9: 59.4
D10: фрукты
D11: салат | E11: Салат из моркови с яблоками | F11: 60 | G11: 0.64 | H11: 3.01 | I11: 5.11 | J11: 50.91
D13: итого | F13: =SUM(F6:F12) -> 535 | G13: =SUM(G6:G12) -> 19.18 | H13: 20.69 | I13: 84.8 | J13: 590.41 | L13: 66.76
A14: =A6 -> 1 | B14: =B6 -> 1 | C14: Завтрак 2 | D14: фрукты
D17: итого | F17: =SUM(F14:F16) -> 0 | G17: =SUM(G14:G16) -> 0 | H17: 0 | I17: 0 | J17: 0 | L17: =SUM(L14:L22) -> 0
A18: =A6 -> 1 | B18: =B6 -> 1 | C18: Обед | D18: закуска
D19: 1 блюдо
D20: 2 блюдо
D21: гарнир
D22: напиток
D23: хлеб бел.
D24: хлеб черн.
D27: итого | F27: =SUM(F18:F26) -> 0 | G27: =SUM(G18:G26) -> 0 | H27: 0 | I27: 0 | J27: 0 | L27: =SUM(L24:L32) -> 0
A28: =A6 -> 1 | B28: =B6 -> 1 | C28: Полдник | D28: булочное
D29: напиток
D32: итого | F32: =SUM(F28:F31) -> 0 | G32: =SUM(G28:G31) -> 0 | H32: 0 | I32: 0 | J32: 0 | L32: =SUM(L25:L31) -> 0
A33: =A6 -> 1 | B33: =B6 -> 1 | C33: Ужин | D33: гор.блюдо
D34: гарнир
D35: напиток
D36: хлеб
D39: итого | F39: =SUM(F33:F38) -> 0 | G39: =SUM(G33:G38) -> 0 | H39: 0 | I39: 0 | J39: 0 | L39: =SUM(L33:L41) -> 0
A40: =A6 -> 1 | B40: =B6 -> 1 | C40: Ужин 2 | D40: кисломол.
D41: булочное
D42: напиток
D43: фрукты
D46: итого | F46: =SUM(F40:F45) -> 0 | G46: =SUM(G40:G45) -> 0 | H46: 0 | I46: 0 | J46: 0 | L46: =SUM(L40:L48) -> 0
A47: =A6 -> 1 | B47: =B6 -> 1 | C47: Итого за день: | F47: =F13+F17+F27+F32+F39+F46 -> 535 | G47: =G13+G17+G27+G32+G39+G46 -> 19.18 | H47: 20.69 | I47: 84.8 | J47: 590.41 | L47: 66.76
A48: 1 | B48: 2 | C48: Завтрак | D48: гарнир | E48: Сырники из творога с молочной кашей "Дружба" | F48: 215 | G48: 13.65 | H48: 15.29 | I48: 32.32 | J48: 330.9 | K48: 175.219
D50: гор.напиток | E50: Чай с сахаром | F50: 200 | G50: 0.07 | H50: 0.02 | I50: 10.01 | J50: 40 | K50: 376
D51: хлеб | E51: Хлеб ржаной | F51: 30 | G51: 1.98 | H51: 0.36 | I51: 11.88 | J51: 59.4
D52: фрукты | E52: Плоды и ягоды свежие (яблоки) | F52: 100 | G52: 0.4 | H52: 0.4 | I52: 9.8 | J52: 47
D55: итого | F55: =SUM(F48:F54) -> 545 | G55: =SUM(G48:G54) -> 16.1 | H55: =SUM(H48:H54) -> 16.07 | I55: =SUM(I48:I54) -> 64.01 | J55: =SUM(J48:J54) -> 477.3 | L55: 66.76
A56: =A48 -> 1 | B56: =B48 -> 2 | C56: Завтрак 2 | D56: фрукты
D59: итого | F59: =SUM(F56:F58) -> 0 | G59: =SUM(G56:G58) -> 0 | H59: =SUM(H56:H58) -> 0 | I59: =SUM(I56:I58) -> 0 | J59: =SUM(J56:J58) -> 0 | L59: =SUM(L56:L64) -> 0
A60: =A48 -> 1 | B60: =B48 -> 2 | C60: Обед | D60: закуска
D61: 1 блюдо
D62: 2 блюдо
D63: гарнир
D64: напиток
D65: хлеб бел.
D66: хлеб черн.
D69: итого | F69: =SUM(F60:F68) -> 0 | G69: =SUM(G60:G68) -> 0 | H69: =SUM(H60:H68) -> 0 | I69: =SUM(I60:I68) -> 0 | J69: =SUM(J60:J68) -> 0 | L69: =SUM(L66:L74) -> 0
A70: =A48 -> 1 | B70: =B48 -> 2 | C70: Полдник | D70: булочное
D71: напиток
D74: итого | F74: =SUM(F70:F73) -> 0 | G74: =SUM(G70:G73) -> 0 | H74: =SUM(H70:H73) -> 0 | I74: =SUM(I70:I73) -> 0 | J74: =SUM(J70:J73) -> 0 | L74: =SUM(L67:L73) -> 0
A75: =A48 -> 1 | B75: =B48 -> 2 | C75: Ужин | D75: гор.блюдо
D76: гарнир
D77: напиток
D78: хлеб
D81: итого | F81: =SUM(F75:F80) -> 0 | G81: =SUM(G75:G80) -> 0 | H81: =SUM(H75:H80) -> 0 | I81: =SUM(I75:I80) -> 0 | J81: =SUM(J75:J80) -> 0 | L81: =SUM(L75:L83) -> 0
A82: =A48 -> 1 | B82: =B48 -> 2 | C82: Ужин 2 | D82: кисломол.
D83: булочное
D84: напиток
D85: фрукты
D88: итого | F88: =SUM(F82:F87) -> 0 | G88: =SUM(G82:G87) -> 0 | H88: =SUM(H82:H87) -> 0 | I88: =SUM(I82:I87) -> 0 | J88: =SUM(J82:J87) -> 0 | L88: =SUM(L82:L90) -> 0
A89: =A48 -> 1 | B89: =B48 -> 2 | C89: Итого за день: | F89: =F55+F59+F69+F74+F81+F88 -> 545 | G89: =G55+G59+G69+G74+G81+G88 -> 16.1 | H89: =H55+H59+H69+H74+H81+H88 -> 16.07 | I89: =I55+I59+I69+I74+I81+I88 -> 64.01 | J89: =J55+J59+J69+J74+J81+J88 -> 477.3 | L89: 66.76
A90: 1 | B90: 3 | C90: Завтрак | D90: гарнир | E90: Каша гречневая рассыпчатая | F90: 150 | G90: 3.77 | H90: 2.29 | I90: 39.72 | J90: 214 | K90: 171
D91: мясные блюда | E91: Гуляш из говядины | F91: 100 | G91: 10.39 | H91: 14.79 | I91: 10.3 | J91: 221 | K91: 260
D92: гор.напиток | E92: Чай с сахаром, с лимоном | F92: 200 | G92: 0.11 | H92: 0.02 | I92: 10.15 | J92: 41.32 | K92: 377
D93: хлеб | E93: Хлеб ржаной | F93: 50 | G93: 3.3 | H93: 0.6 | I93: 19.8 | J93: 99
D94: фрукты
E95: Сыр порционно | F95: 10 | G95: 2.63 | H95: 2.66 | I95: 0 | J95: 34.33
D97: итого | F97: =SUM(F90:F96) -> 510 | G97: =SUM(G90:G96) -> 20.2 | H97: =SUM(H90:H96) -> 20.36 | I97: =SUM(I90:I96) -> 79.97 | J97: =SUM(J90:J96) -> 609.65 | L97: 66.76
A98: =A90 -> 1 | B98: =B90 -> 3 | C98: Завтрак 2 | D98: фрукты
D101: итого | F101: =SUM(F98:F100) -> 0 | G101: =SUM(G98:G100) -> 0 | H101: =SUM(H98:H100) -> 0 | I101: =SUM(I98:I100) -> 0 | J101: =SUM(J98:J100) -> 0 | L101: =SUM(L98:L106) -> 0
A102: =A90 -> 1 | B102: =B90 -> 3 | C102: Обед | D102: закуска
D103: 1 блюдо
D104: 2 блюдо
D105: гарнир
D106: напиток
D107: хлеб бел.
D108: хлеб черн.
D111: итого | F111: =SUM(F102:F110) -> 0 | G111: =SUM(G102:G110) -> 0 | H111: =SUM(H102:H110) -> 0 | I111: =SUM(I102:I110) -> 0 | J111: =SUM(J102:J110) -> 0 | L111: =SUM(L108:L116) -> 0
A112: =A90 -> 1 | B112: =B90 -> 3 | C112: Полдник | D112: булочное
D113: напиток
D116: итого | F116: =SUM(F112:F115) -> 0 | G116: =SUM(G112:G115) -> 0 | H116: =SUM(H112:H115) -> 0 | I116: =SUM(I112:I115) -> 0 | J116: =SUM(J112:J115) -> 0 | L116: =SUM(L109:L115) -> 0
A117: =A90 -> 1 | B117: =B90 -> 3 | C117: Ужин | D117: гор.блюдо
D118: гарнир
D119: напиток
D120: хлеб
D123: итого | F123: =SUM(F117:F122) -> 0 | G123: =SUM(G117:G122) -> 0 | H123: =SUM(H117:H122) -> 0 | I123: =SUM(I117:I122) -> 0 | J123: =SUM(J117:J122) -> 0 | L123: =SUM(L117:L125) -> 0
A124: =A90 -> 1 | B124: =B90 -> 3 | C124: Ужин 2 | D124: кисломол.
D125: булочное
D126: напиток
D127: фрукты
D130: итого | F130: =SUM(F124:F129) -> 0 | G130: =SUM(G124:G129) -> 0 | H130: =SUM(H124:H129) -> 0 | I130: =SUM(I124:I129) -> 0 | J130: =SUM(J124:J129) -> 0 | L130: =SUM(L124:L132) -> 0
A131: =A90 -> 1 | B131: =B90 -> 3 | C131: Итого за день: | F131: =F97+F101+F111+F116+F123+F130 -> 510 | G131: =G97+G101+G111+G116+G123+G130 -> 20.2 | H131: =H97+H101+H111+H116+H123+H130 -> 20.36 | I131: =I97+I101+I111+I116+I123+I130 -> 79.97 | J131: =J97+J101+J111+J116+J123+J130 -> 609.65 | L131: 66.76
A132: 1 | B132: 4 | C132: Завтрак | D132: гарнир | E132: Пюре картофельное с маслом сливочным | F132: 153 | G132: 3.08 | H132: 6.25 | I132: 20.47 | J132: 150.45 | K132: 312
D133: мясные блюда | E133: Котлета из мяса птицы | F133: 90 | G133: 10.2 | H133: 12.93 | I133: 13.79 | J133: 198
D134: гор.напиток | E134: Чай с сахаром, с яблоком | F134: 200 | G134: 0.11 | H134: 0.06 | I134: 10.98 | J134: 44.7 | K134: 376
D135: хлеб | E135: Хлеб пшеничный | F135: 30 | G135: 2.28 | H135: 0.24 | I135: 14.76 | J135: 70.5
D136: фрукты
D137: салат | E137: Свекла отварная дольками | F137: 60 | G137: 1.08 | H137: 0.06 | I137: 5.88 | J137: 28.8
D138: хлеб | E138: Хлеб ржаной | F138: 40 | G138: 2.64 | H138: 0.48 | I138: 15.84 | J138: 79.2
D139: итого | F139: =SUM(F132:F138) -> 573 | G139: =SUM(G132:G138) -> 19.39 | H139: =SUM(H132:H138) -> 20.02 | I139: =SUM(I132:I138) -> 81.72 | J139: =SUM(J132:J138) -> 571.65 | L139: 66.76
A140: =A132 -> 1 | B140: =B132 -> 4 | C140: Завтрак 2 | D140: фрукты
D143: итого | F143: =SUM(F140:F142) -> 0 | G143: =SUM(G140:G142) -> 0 | H143: =SUM(H140:H142) -> 0 | I143: =SUM(I140:I142) -> 0 | J143: =SUM(J140:J142) -> 0 | L143: =SUM(L140:L148) -> 0
A144: =A132 -> 1 | B144: =B132 -> 4 | C144: Обед | D144: закуска
D145: 1 блюдо
D146: 2 блюдо
D147: гарнир
D148: напиток
D149: хлеб бел.
D150: хлеб черн.
D153: итого | F153: =SUM(F144:F152) -> 0 | G153: =SUM(G144:G152) -> 0 | H153: =SUM(H144:H152) -> 0 | I153: =SUM(I144:I152) -> 0 | J153: =SUM(J144:J152) -> 0 | L153: =SUM(L150:L158) -> 0
A154: =A132 -> 1 | B154: =B132 -> 4 | C154: Полдник | D154: булочное
D155: напиток
D158: итого | F158: =SUM(F154:F157) -> 0 | G158: =SUM(G154:G157) -> 0 | H158: =SUM(H154:H157) -> 0 | I158: =SUM(I154:I157) -> 0 | J158: =SUM(J154:J157) -> 0 | L158: =SUM(L151:L157) -> 0
A159: =A132 -> 1 | B159: =B132 -> 4 | C159: Ужин | D159: гор.блюдо
D160: гарнир
D161: напиток
D162: хлеб
D165: итого | F165: =SUM(F159:F164) -> 0 | G165: =SUM(G159:G164) -> 0 | H165: =SUM(H159:H164) -> 0 | I165: =SUM(I159:I164) -> 0 | J165: =SUM(J159:J164) -> 0 | L165: =SUM(L159:L167) -> 0
A166: =A132 -> 1 | B166: =B132 -> 4 | C166: Ужин 2 | D166: кисломол.
D167: булочное
D168: напиток
D169: фрукты
D172: итого | F172: =SUM(F166:F171) -> 0 | G172: =SUM(G166:G171) -> 0 | H172: =SUM(H166:H171) -> 0 | I172: =SUM(I166:I171) -> 0 | J172: =SUM(J166:J171) -> 0 | L172: =SUM(L166:L174) -> 0
A173: =A132 -> 1 | B173: =B132 -> 4 | C173: Итого за день: | F173: =F139+F143+F153+F158+F165+F172 -> 573 | G173: =G139+G143+G153+G158+G165+G172 -> 19.39 | H173: =H139+H143+H153+H158+H165+H172 -> 20.02 | I173: =I139+I143+I153+I158+I165+I172 -> 81.72 | J173: =J139+J143+J153+J158+J165+J172 -> 571.65 | L173: 66.76
A174: 1 | B174: 5 | C174: Завтрак | D174: гарнир | E174: Макаронные изделия отварные с маслом сливочным | F174: 185 | G174: 5.1 | H174: 3.62 | I174: 31.96 | J174: 176.1 | K174: 203
E175: Сыр порционно | F175: 15 | G175: 3.95 | H175: 3.99 | I175: 0 | J175: 51.5 | K175: 15
D176: гор.напиток | E176: Напиток из свежих фруктов (75С) | F176: 200 | G176: 0.34 | H176: 0.17 | I176: 21.46 | J176: 103.5
D177: хлеб | E177: Хлеб пшеничный | F177: 45 | G177: 3.42 | H177: 0.36 | I177: 22.14 | J177: 105.75
D178: мясн.блюд | E178: Тефтели мясные в сметанно-томатном соусе | F178: 100 | G178: 7.284 | H178: 11.94 | I178: 8.36 | J178: 124 | K178: 279
D181: итого | F181: =SUM(F174:F180) -> 545 | G181: 20.09 | H181: =SUM(H174:H180) -> 20.08 | I181: =SUM(I174:I180) -> 83.92 | J181: 560.84 | L181: 66.76
A182: =A174 -> 1 | B182: =B174 -> 5 | C182: Завтрак 2 | D182: фрукты
D185: итого | F185: =SUM(F182:F184) -> 0 | G185: =SUM(G182:G184) -> 0 | H185: =SUM(H182:H184) -> 0 | I185: =SUM(I182:I184) -> 0 | J185: =SUM(J182:J184) -> 0 | L185: =SUM(L182:L190) -> 0
A186: =A174 -> 1 | B186: =B174 -> 5 | C186: Обед | D186: закуска
D187: 1 блюдо
D188: 2 блюдо
D189: гарнир
D190: напиток
D191: хлеб бел.
D192: хлеб черн.
D195: итого | F195: =SUM(F186:F194) -> 0 | G195: =SUM(G186:G194) -> 0 | H195: =SUM(H186:H194) -> 0 | I195: =SUM(I186:I194) -> 0 | J195: =SUM(J186:J194) -> 0 | L195: =SUM(L192:L200) -> 0
A196: =A174 -> 1 | B196: =B174 -> 5 | C196: Полдник | D196: булочное
D197: напиток
D200: итого | F200: =SUM(F196:F199) -> 0 | G200: =SUM(G196:G199) -> 0 | H200: =SUM(H196:H199) -> 0 | I200: =SUM(I196:I199) -> 0 | J200: =SUM(J196:J199) -> 0 | L200: =SUM(L193:L199) -> 0
A201: =A174 -> 1 | B201: =B174 -> 5 | C201: Ужин | D201: гор.блюдо
D202: гарнир
D203: напиток
D204: хлеб
D207: итого | F207: =SUM(F201:F206) -> 0 | G207: =SUM(G201:G206) -> 0 | H207: =SUM(H201:H206) -> 0 | I207: =SUM(I201:I206) -> 0 | J207: =SUM(J201:J206) -> 0 | L207: =SUM(L201:L209) -> 0
A208: =A174 -> 1 | B208: =B174 -> 5 | C208: Ужин 2 | D208: кисломол.
D209: булочное
D210: напиток
D211: фрукты
D214: итого | F214: =SUM(F208:F213) -> 0 | G214: =SUM(G208:G213) -> 0 | H214: =SUM(H208:H213) -> 0 | I214: =SUM(I208:I213) -> 0 | J214: =SUM(J208:J213) -> 0 | L214: =SUM(L208:L216) -> 0
A215: =A174 -> 1 | B215: =B174 -> 5 | C215: Итого за день: | F215: =F181+F185+F195+F200+F207+F214 -> 545 | G215: =G181+G185+G195+G200+G207+G214 -> 20.09 | H215: =H181+H185+H195+H200+H207+H214 -> 20.08 | I215: =I181+I185+I195+I200+I207+I214 -> 83.92 | J215: =J181+J185+J195+J200+J207+J214 -> 560.84 | L215: 66.76
A216: 1 | B216: 6 | C216: Завтрак | D216: гарнир | E216: Рис отварной рассыпчатый с маслом сливочным | F216: 153 | G216: 3.63 | H216: 6.5 | I216: 37.58 | J216: 223.35 | K216: 302
D217: мясные блюда | E217: Биточки рыбные | F217: 90 | G217: 13.17 | H217: 10.7 | I217: 15.79 | J217: 193.3 | K217: 234
D218: гор.напиток | E218: Чай с сахаром, с лимоном | F218: 200 | G218: 0.11 | H218: 0.02 | I218: 10.15 | J218: 41.32 | K218: 377
D219: хлеб | E219: Хлеб ржаной | F219: 30 | G219: 1.98 | H219: 0.36 | I219: 11.88 | J219: 59.4
D220: фрукты
D221: хлеб
D222: салат | E222: Салат из свежей капусты с морковью | F222: 80 | G222: 1.05 | H222: 2.6 | I222: 5.17 | J222: 48.32 | K222: 47
D223: итого | F223: =SUM(F216:F222) -> 553 | G223: =SUM(G216:G222) -> 19.94 | H223: =SUM(H216:H222) -> 20.18 | I223: =SUM(I216:I222) -> 80.57 | J223: 565.69 | L223: 66.76
A224: =A216 -> 1 | B224: =B216 -> 6 | C224: Завтрак 2 | D224: фрукты
D227: итого | F227: =SUM(F224:F226) -> 0 | G227: =SUM(G224:G226) -> 0 | H227: =SUM(H224:H226) -> 0 | I227: =SUM(I224:I226) -> 0 | J227: =SUM(J224:J226) -> 0 | L227: =SUM(L224:L232) -> 0
A228: =A216 -> 1 | B228: =B216 -> 6 | C228: Обед | D228: закуска
D229: 1 блюдо
D230: 2 блюдо
D231: гарнир
D232: напиток
D233: хлеб бел.
D234: хлеб черн.
D237: итого | F237: =SUM(F228:F236) -> 0 | G237: =SUM(G228:G236) -> 0 | H237: =SUM(H228:H236) -> 0 | I237: =SUM(I228:I236) -> 0 | J237: =SUM(J228:J236) -> 0 | L237: =SUM(L234:L242) -> 0
A238: =A216 -> 1 | B238: =B216 -> 6 | C238: Полдник | D238: булочное
D239: напиток
D242: итого | F242: =SUM(F238:F241) -> 0 | G242: =SUM(G238:G241) -> 0 | H242: =SUM(H238:H241) -> 0 | I242: =SUM(I238:I241) -> 0 | J242: =SUM(J238:J241) -> 0 | L242: =SUM(L235:L241) -> 0
A243: =A216 -> 1 | B243: =B216 -> 6 | C243: Ужин | D243: гор.блюдо
D244: гарнир
D245: напиток
D246: хлеб
D249: итого | F249: =SUM(F243:F248) -> 0 | G249: =SUM(G243:G248) -> 0 | H249: =SUM(H243:H248) -> 0 | I249: =SUM(I243:I248) -> 0 | J249: =SUM(J243:J248) -> 0 | L249: =SUM(L243:L251) -> 0
A250: =A216 -> 1 | B250: =B216 -> 6 | C250: Ужин 2 | D250: кисломол.
D251: булочное
D252: напиток
D253: фрукты
D256: итого | F256: =SUM(F250:F255) -> 0 | G256: =SUM(G250:G255) -> 0 | H256: =SUM(H250:H255) -> 0 | I256: =SUM(I250:I255) -> 0 | J256: =SUM(J250:J255) -> 0 | L256: =SUM(L250:L258) -> 0
A257: =A216 -> 1 | B257: =B216 -> 6 | C257: Итого за день: | F257: =F223+F227+F237+F242+F249+F256 -> 553 | G257: =G223+G227+G237+G242+G249+G256 -> 19.94 | H257: =H223+H227+H237+H242+H249+H256 -> 20.18 | I257: =I223+I227+I237+I242+I249+I256 -> 80.57 | J257: =J223+J227+J237+J242+J249+J256 -> 565.69 | L257: 66.76
A258: 1 | B258: 7 | C258: Завтрак | D258: гор.блюдо
D259: мясные блюда
D260: гор.напиток
D261: хлеб
D262: фрукты
D263: хлеб
D265: итого | F265: =SUM(F258:F264) -> 0 | G265: =SUM(G258:G264) -> 0 | H265: =SUM(H258:H264) -> 0 | I265: =SUM(I258:I264) -> 0 | J265: =SUM(J258:J264) -> 0 | L265: =SUM(L258:L264) -> 0
A266: =A258 -> 1 | B266: =B258 -> 7 | C266: Завтрак 2 | D266: фрукты
D269: итого | F269: =SUM(F266:F268) -> 0 | G269: =SUM(G266:G268) -> 0 | H269: =SUM(H266:H268) -> 0 | I269: =SUM(I266:I268) -> 0 | J269: =SUM(J266:J268) -> 0 | L269: =SUM(L266:L274) -> 0
A270: =A258 -> 1 | B270: =B258 -> 7 | C270: Обед | D270: закуска
... 238 more rows
